[Event "1st Bangalore GM-Open-A 2024"]
[Site "Bangalore"]
[Date "2024.01.19"]
[Round "3.20"]
[White "Saravana, Krishnan P."]
[Black "Das, Sayantan"]
[Result "1/2-1/2"]
[ECO "B12"]
[WhiteElo "2269"]
[BlackElo "2514"]
[Annotator "TA"]
[PlyCount "96"]
[EventDate "2024.01.20"]
[EventType "swiss"]
[EventCountry "IND"]
[SourceTitle "playchess.com"]
[Source "ChessBase"]
[SourceQuality "1"]
[TimeControl "5400+30"]

{[%evp 9,96,6,13,21,25,1,8,0,34,22,21,38,33,16,17,20,18,14,25,0,0,0,0,0,0,0,0,0,0,0,0,0,6,4,47,29,62,12,66,62,71,53,45,0,0,0,0,5,23,0,0,0,0,0,35,14,20,0,30,17,96,96,94,92,112,112,117,108,99,106,104,34,37,0,0,0,0,0,0,-6,-5,-5,0,0,0,-8,0,0,0]} 1. e4 {[%emt 0:00:22]} c6 {[%emt 0:00:32]} 2. d4 {[%emt 0:01:41]} d5 {[%emt 0:00:11]} 3. e5 {[%emt 0:01:50]} Bf5 {[%emt 0:00:08]} 4. Nd2 {[%emt 0:01:51]} e6 {[%emt 0:00:12]} 5. Nb3 {[%emt 0:00:15]} a6 {[%emt 0:03:25]} 6. Be3 {[%emt 0:01:51] B12: Caro-Kann: Advance Variation.} Nd7 {[%emt 0:03:33][%cal Oc6c5]} 7. Nf3 {[%emt 0:01:07]} Qc7 {[%emt 0:01:59]} 8. Be2 {[%emt 0:03:49]} c5 {[%emt 0:03:25]} 9. dxc5 {[%emt 0:07:59]} Bxc5 {[%emt 0:07:39]} 10. Nxc5 {[%emt 0:07:44]} Nxc5 {[%emt 0:00:04]} 11. Nd4 {[%emt 0:00:12] Black must now prevent Nxf5.} Ne7 {[%emt 0:04:08]} 12. O-O {[%emt 0:01:31]} O-O {[%emt 0:09:50]} 13. f4 {[%emt 0:05:25] [#]} Na4 $146 {[%emt 0:11:00]} ({Predecessor:} 13... Be4 14. g4 b5 15. Qe1 Na4 16. Rb1 Nc6 17. b3 Nb6 18. Rc1 Nd7 19. c3 Rac8 {0-1 Shuvalova,P (2489)-Keymer,V (2591) Juniors Speed Qual Europe blitz 2021 (1.2)}) 14. Rb1 {[%emt 0:02:38]} Be4 {[%emt 0:03:22]} 15. Bd3 {[%emt 0:03:27]} b5 {[%emt 0:01:04]} 16. Bf2 {[%emt 0:04:33]} Rac8 {[%emt 0:11:08]} 17. Qe2 {[%emt 0:01:26]} Nc5 {[%emt 0:00:57]} 18. Ra1 {[%emt 0:06:05]} Nf5 {[%emt 0:07:11]} 19. Rfe1 {[%emt 0:10:57]} Nxd4 {[%emt 0:06:54]} 20. Bxd4 {[%emt 0:00:57]} b4 {[%emt 0:03:14]} 21. Qe3 {[%emt 0:05:41]} a5 {[%emt 0:01:28]} 22. Rac1 {[%emt 0:01:19]} Qe7 {[%emt 0:06:38]} 23. Bb5 {[%emt 0:02:16]} ({White should play} 23. Bf1 $14) 23... f5 {[%emt 0:06:55]} ({Better is} 23... Bg6 $11) 24. exf6 $14 {[%emt 0:05:49]} gxf6 {[%emt 0:00:03]} 25. Bd3 {[%emt 0:04:15] A strong pair of Bishops.} (25. c3 $5 {[%cal Rc3b4]}) 25... Qg7 {[%emt 0:02:26][%csl Ge4][%cal Rg7g2] [#]} 26. Qh3 {[%emt 0:10:02]} (26. Bxc5 $2 Qxg2#) (26. Bf1 {is more complex.} Nd7 27. c4 e5 28. cxd5 Bxd5 29. fxe5 fxe5 30. Rxc8 Rxc8 31. Bxe5 Nxe5 32. Qxe5 Qxe5 33. Rxe5 Bxa2 34. Rxa5 Bc4 35. Re5) 26... Nxd3 {[%emt 0:00:46]} 27. cxd3 {[%emt 0:00:10]} Bf5 {[%emt 0:00:11]} 28. Qe3 {[%emt 0:00:22]} Qg6 {[%emt 0:02:00]} 29. Rxc8 {[%emt 0:02:54]} (29. Bb6 $5 {[%cal Rb6a5]}) 29... Rxc8 {[%emt 0:00:01]} 30. Rc1 {[%emt 0:00:24]} Rxc1+ {[%emt 0:02:58]} 31. Qxc1 $11 {[%emt 0:00:17][%mdl 4096] Endgame KQB-KQB} Qf7 {[%emt 0:00:23]} 32. Qe3 {[%emt 0:02:03]} Kg7 {[%emt 0:01:35]} 33. Kf2 {[%emt 0:00:50]} Qh5 {[%emt 0:00:44]} 34. h3 {[%emt 0:00:58] [#] g4 is the strong threat.} Qh4+ {[%emt 0:00:46]} (34... Qd1 $11 {remains equal.}) 35. Kg1 {[%emt 0:00:24]} (35. Ke2 {feels hotter.} Bg6 36. b3 Be8 37. g4) 35... Kf7 {[%emt 0:00:25]} 36. Kh2 {[%emt 0:01:52]} Qh6 {[%emt 0:00:17][%cal Oe6e5]} 37. Qf3 {[%emt 0:01:06]} Bg6 {[%emt 0:00:49]} (37... Qg6 $2 38. g4 $18) 38. g4 {[%emt 0:01:52]} Qh4 {[%emt 0:00:35]} 39. Bf2 {[%emt 0:00:16]} Qh6 {[%emt 0:00:01]} 40. f5 {[%emt 0:00:31]} (40. Qe3 $16 {[%cal Of4f5] Hoping for f5!} Qf8 41. Qa7+ Kg8 42. Bc5) 40... exf5 $14 {[%emt 0:00:02]} 41. gxf5 {[%emt 0:00:31]} Bh5 {[%emt 0:00:05] The position is equal.} 42. Qxd5+ {[%emt 0:00:20]} Kg7 {[%emt 0:00:08]} 43. Qd7+ {[%emt 0:01:25]} Bf7 {[%emt 0:00:21]} 44. a3 {[%emt 0:00:30]} Qf4+ {[%emt 0:01:30]} 45. Kg2 {[%emt 0:00:11]} Qg5+ {[%emt 0:00:13]} 46. Kh2 {[%emt 0:00:21]} Qf4+ {[%emt 0:00:12]} 47. Kg2 {[%emt 0:00:06]} Qg5+ {[%emt 0:00:06]} 48. Kh2 {[%emt 0:00:37]} Qf4+ {[%emt 0:00:33] Weighted Error Value: White=0.10 (very precise) /Black=0.11 (very precise)} 1/2-1/2

[Event "1st Bangalore GM-Open-A 2024"]
[Site "Bangalore"]
[Date "2024.01.19"]
[Round "3.21"]
[White "Chanda, Sandipan"]
[Black "Saurabh Anand"]
[Result "1-0"]
[ECO "D11"]
[WhiteElo "2486"]
[BlackElo "2243"]
[Annotator "RC"]
[PlyCount "117"]
[EventDate "2024.01.20"]
[EventType "swiss"]
[EventCountry "IND"]
[SourceTitle "playchess.com"]
[Source "ChessBase"]
[SourceQuality "1"]
[TimeControl "5400+30"]

1. d4 {[%emt 0:00:04]} d5 {[%emt 0:00:29]} 2. c4 {[%emt 0:00:13]} c6 {[%emt 0:00:30]} 3. Nf3 {[%emt 0:00:14]} Nf6 {[%emt 0:00:22]} 4. e3 {[%emt 0:00:11]} Bg4 {[%emt 0:00:47]} 5. h3 {[%emt 0:00:14]} Bh5 {[%emt 0:01:53]} 6. Nc3 {[%emt 0:00:25]} e6 {[%emt 0:00:47]} 7. g4 {[%emt 0:00:16]} Bg6 {[%emt 0:00:10]} 8. Ne5 {[%emt 0:00:08]} Nbd7 {[%emt 0:04:46]} 9. Nxg6 {[%emt 0:00:17]} hxg6 {[%emt 0:00:09]} 10. a3 {[%emt 0:00:11]} Be7 {[%emt 0:01:31]} 11. Bd2 {[%emt 0:00:25]} g5 {[%emt 0:01:09]} 12. Qf3 {[%emt 0:00:32]} O-O {[%emt 0:19:26]} 13. h4 {[%emt 0:05:26]} gxh4 {[%emt 0:02:48]} 14. Rxh4 {[%emt 0:02:02]} g5 {[%emt 0:05:17]} 15. Rh1 {[%emt 0:07:46]} Kg7 {[%emt 0:00:56]} 16. O-O-O {[%emt 0:00:48]} Qc7 {[%emt 0:11:02]} 17. e4 {[%emt 0:02:31]} Nxe4 {[%emt 0:01:17]} 18. Nxe4 {[%emt 0:00:38]} dxe4 {[%emt 0:00:11]} 19. Qxe4 {[%emt 0:00:10]} Rh8 {[%emt 0:01:04]} 20. Bd3 {[%emt 0:00:15]} Nf6 {[%emt 0:00:22]} 21. Qg2 {[%emt 0:01:10]} Rxh1 {[%emt 0:00:52]} 22. Rxh1 {[%emt 0:00:16]} Rh8 {[%emt 0:00:14]} 23. Rxh8 {[%emt 0:02:15]} Kxh8 {[%emt 0:00:03]} 24. Bxg5 {[%emt 0:03:56]} Kg7 {[%emt 0:02:52]} 25. Be3 {[%emt 0:02:31]} Bd6 {[%emt 0:10:10]} 26. g5 {[%emt 0:01:05]} Ng8 {[%emt 0:00:39]} 27. Qe4 {[%emt 0:00:55]} Kf8 {[%emt 0:01:27]} 28. g6 {[%emt 0:02:11]} Qe7 {[%emt 0:01:35]} 29. c5 {[%emt 0:05:45]} Bc7 {[%emt 0:00:29]} 30. Bc4 {[%emt 0:05:12]} Nf6 {[%emt 0:08:02]} 31. Bh6+ {[%emt 0:18:48]} Ke8 {[%emt 0:01:42]} 32. gxf7+ {[%emt 0:00:20]} Kxf7 {[%emt 0:02:30]} 33. Qf5 {[%emt 0:00:12]} Qd7 {[%emt 0:03:15]} 34. Bg5 {[%emt 0:00:14]} Qxd4 {[%emt 0:04:13]} 35. Bxe6+ {[%emt 0:01:21]} Kg7 {[%emt 0:00:19]} 36. Be3 {[%emt 0:02:07]} Qh4 {[%emt 0:03:40]} 37. Ba2 {[%emt 0:02:35]} Qh1+ {[%emt 0:01:34]} 38. Kd2 {[%emt 0:00:38]} Qe4 {[%emt 0:01:19]} 39. Qxe4 {[%emt 0:03:06]} Nxe4+ {[%emt 0:00:04]} 40. Kd3 {[%emt 0:00:06]} Nf6 {[%emt 0:00:48]} 41. Be6 {[%emt 0:01:33]} b6 {[%emt 0:00:55]} 42. Bc8 {[%emt 0:01:58]} Kf7 {[%emt 0:01:33]} 43. Bb7 {[%emt 0:02:36]} Nd7 {[%emt 0:00:13]} 44. cxb6 {[%emt 0:06:19]} axb6 {[%emt 0:02:18]} 45. b4 {[%emt 0:00:11]} Ne5+ {[%emt 0:02:27]} 46. Kc3 {[%emt 0:00:02]} Ke6 {[%emt 0:00:38]} 47. f4 {[%emt 0:01:31]} Ng6 {[%emt 0:00:30]} 48. Bxc6 {[%emt 0:00:33]} Nxf4 {[%emt 0:00:19]} 49. Kc4 {[%emt 0:00:08]} Ng6 {[%emt 0:01:56]} 50. Kb5 {[%emt 0:00:33]} Ne5 {[%emt 0:00:04]} 51. a4 {[%emt 0:02:54]} Kd6 {[%emt 0:00:34]} 52. Be4 {[%emt 0:02:18]} Nd7 {[%emt 0:00:59]} 53. Bf5 {[%emt 0:00:17]} Bd8 {[%emt 0:01:34]} 54. Bxd7 {[%emt 0:00:48]} Kxd7 {[%emt 0:00:04]} 55. Bxb6 {[%emt 0:00:08]} Be7 {[%emt 0:01:07]} 56. Bc5 {[%emt 0:00:12]} Bg5 {[%emt 0:00:02]} 57. Kb6 {[%emt 0:00:40]} Kc8 {[%emt 0:00:11]} 58. Bd6 {[%emt 0:00:53]} Be3+ {[%emt 0:00:43]} 59. Kc6 {[%emt 0:00:10]} 1-0

[Event "1st Bangalore GM-Open-A 2024"]
[Site "Bangalore"]
[Date "2024.01.19"]
[Round "3.22"]
[White "Ratnakaran, K.."]
[Black "Srihari L R"]
[Result "0-1"]
[ECO "B11"]
[WhiteElo "2256"]
[BlackElo "2469"]
[Annotator "RC"]
[PlyCount "90"]
[EventDate "2024.01.20"]
[EventType "swiss"]
[EventCountry "IND"]
[SourceTitle "playchess.com"]
[Source "ChessBase"]
[SourceQuality "1"]
[TimeControl "5400+30"]

1. e4 {[%emt 0:00:02]} c6 {[%emt 0:02:59]} 2. Nc3 {[%emt 0:00:09]} d5 {[%emt 0:01:19]} 3. Nf3 {[%emt 0:00:07]} Bg4 {[%emt 0:00:06]} 4. h3 {[%emt 0:00:05]} Bxf3 {[%emt 0:00:07]} 5. Qxf3 {[%emt 0:00:06]} e6 {[%emt 0:00:11]} 6. Qg3 {[%emt 0:00:09]} Ne7 {[%emt 0:00:37]} 7. d3 {[%emt 0:00:31]} Nd7 {[%emt 0:00:10]} 8. h4 {[%emt 0:00:24]} h5 {[%emt 0:12:39]} 9. f4 {[%emt 0:00:47]} g6 {[%emt 0:01:52]} 10. Be2 {[%emt 0:00:40]} Qb6 {[%emt 0:03:19]} 11. a4 {[%emt 0:00:51]} a5 {[%emt 0:09:40]} 12. Bd2 {[%emt 0:02:59]} Bg7 {[%emt 0:01:21]} 13. Nd1 {[%emt 0:01:01]} dxe4 {[%emt 0:19:38]} 14. dxe4 {[%emt 0:00:15]} Bd4 {[%emt 0:03:36]} 15. Be3 {[%emt 0:05:24]} Nf6 {[%emt 0:02:40]} 16. Bxd4 {[%emt 0:01:44]} Qxd4 {[%emt 0:00:16]} 17. Qc3 {[%emt 0:00:05]} O-O-O {[%emt 0:03:17]} 18. e5 {[%emt 0:04:51]} Ne4 {[%emt 0:01:06]} 19. Qxd4 {[%emt 0:01:57]} Rxd4 {[%emt 0:00:05]} 20. c3 {[%emt 0:00:19]} Ng3 {[%emt 0:12:45]} 21. Rh3 {[%emt 0:06:35]} Nxe2 {[%emt 0:00:07]} 22. cxd4 {[%emt 0:00:03]} Nxf4 {[%emt 0:00:08]} 23. Rf3 {[%emt 0:00:02]} Nxg2+ {[%emt 0:00:19]} 24. Kf2 {[%emt 0:00:07]} Nxh4 {[%emt 0:00:10]} 25. Rxf7 {[%emt 0:00:05]} Nhf5 {[%emt 0:08:47]} 26. Nc3 {[%emt 0:01:11]} g5 {[%emt 0:00:35]} 27. Rg1 {[%emt 0:04:17]} g4 {[%emt 0:02:06]} 28. Ne2 {[%emt 0:00:04]} Nd5 {[%emt 0:01:46]} 29. Ng3 {[%emt 0:01:31]} Nh6 {[%emt 0:03:07]} 30. Rg7 {[%emt 0:01:18]} h4 {[%emt 0:00:06]} 31. Ne4 {[%emt 0:00:15]} g3+ {[%emt 0:00:04]} 32. Ke2 {[%emt 0:03:24]} Nf5 {[%emt 0:00:24]} 33. Nd6+ {[%emt 0:00:19]} Nxd6 {[%emt 0:00:22]} 34. exd6 {[%emt 0:00:07]} g2 {[%emt 0:00:33]} 35. R1xg2 {[%emt 0:02:41]} Nf4+ {[%emt 0:00:09]} 36. Kf3 {[%emt 0:00:04]} Nxg2 {[%emt 0:00:04]} 37. Kxg2 {[%emt 0:00:03]} h3+ {[%emt 0:00:54]} 38. Kh2 {[%emt 0:00:04]} Rh4 {[%emt 0:03:02]} 39. Rc7+ {[%emt 0:01:01]} Kb8 {[%emt 0:01:33]} 40. Rd7 {[%emt 0:07:06]} Ka7 {[%emt 0:01:13]} 41. Rd8 {[%emt 0:02:57]} Rxd4 {[%emt 0:04:12]} 42. Kxh3 {[%emt 0:00:06]} Rxa4 {[%emt 0:00:09]} 43. Re8 {[%emt 0:00:30]} Rd4 {[%emt 0:00:04]} 44. Rxe6 {[%emt 0:00:03]} Kb6 {[%emt 0:00:07]} 45. Kg3 {[%emt 0:00:04]} c5 {[%emt 0:00:31]} 0-1

[Event "1st Bangalore GM-Open-A 2024"]
[Site "Bangalore"]
[Date "2024.01.19"]
[Round "3.23"]
[White "Rajarishi Karthi"]
[Black "Stany, G.A."]
[Result "1/2-1/2"]
[ECO "D35"]
[WhiteElo "2183"]
[BlackElo "2459"]
[Annotator "RC"]
[PlyCount "107"]
[EventDate "2024.01.20"]
[EventType "swiss"]
[EventCountry "IND"]
[SourceTitle "playchess.com"]
[Source "ChessBase"]
[SourceQuality "1"]
[TimeControl "5400+30"]

1. d4 {[%emt 0:04:31]} d5 {[%emt 0:00:12]} 2. c4 {[%emt 0:00:55]} c6 {[%emt 0:00:07]} 3. Nc3 {[%emt 0:00:13]} Nf6 {[%emt 0:00:09]} 4. Nf3 {[%emt 0:00:06]} e6 {[%emt 0:00:05]} 5. cxd5 {[%emt 0:00:08]} exd5 {[%emt 0:00:05]} 6. Bg5 {[%emt 0:00:15]} h6 {[%emt 0:00:13]} 7. Bh4 {[%emt 0:00:08]} Bf5 {[%emt 0:00:06]} 8. e3 {[%emt 0:00:20]} Nbd7 {[%emt 0:00:55]} 9. Bd3 {[%emt 0:00:15]} Bxd3 {[%emt 0:00:11]} 10. Qxd3 {[%emt 0:00:08]} Be7 {[%emt 0:00:12]} 11. O-O {[%emt 0:01:20]} O-O {[%emt 0:00:04]} 12. Nd2 {[%emt 0:03:11]} Re8 {[%emt 0:00:35]} 13. f4 {[%emt 0:01:17]} Ng4 {[%emt 0:18:11]} 14. Bxe7 {[%emt 0:01:35]} Rxe7 {[%emt 0:01:45]} 15. Rae1 {[%emt 0:00:54]} Qb6 {[%emt 0:01:04]} 16. h3 {[%emt 0:00:48]} Ngf6 {[%emt 0:00:23]} 17. b3 {[%emt 0:06:08]} Rae8 {[%emt 0:04:00]} 18. Kh2 {[%emt 0:04:29]} Nb8 {[%emt 0:11:42]} 19. e4 {[%emt 0:04:41]} dxe4 {[%emt 0:03:04]} 20. Ncxe4 {[%emt 0:00:42]} Nd5 {[%emt 0:12:02]} 21. f5 {[%emt 0:04:36]} Nd7 {[%emt 0:00:58]} 22. Nc4 {[%emt 0:04:57]} Qc7+ {[%emt 0:04:45]} 23. Kg1 {[%emt 0:01:17]} N7f6 {[%emt 0:00:47]} 24. Nxf6+ {[%emt 0:01:31]} Nxf6 {[%emt 0:00:07]} 25. Re5 {[%emt 0:01:14]} Rd8 {[%emt 0:03:53]} 26. Rfe1 {[%emt 0:12:07]} Red7 {[%emt 0:01:56]} 27. Qe3 {[%emt 0:00:37]} Rxd4 {[%emt 0:12:38]} 28. Re7 {[%emt 0:01:50]} Qc8 {[%emt 0:00:35]} 29. Qf2 {[%emt 0:01:56]} Rd1 {[%emt 0:12:48]} 30. Qxa7 {[%emt 0:05:04]} b5 {[%emt 0:00:37]} 31. Na5 {[%emt 0:01:20]} c5 {[%emt 0:02:58]} 32. Qb7 {[%emt 0:04:50]} Qxf5 {[%emt 0:01:50]} 33. Qxb5 {[%emt 0:00:54]} R8d2 {[%emt 0:02:16]} 34. Qf1 {[%emt 0:01:26]} Qd5 {[%emt 0:02:01]} 35. a4 {[%emt 0:04:03]} Qd4+ {[%emt 0:02:07]} 36. Kh1 {[%emt 0:00:19]} Rxe1 {[%emt 0:00:46]} 37. Rxe1 {[%emt 0:00:08]} Ne4 {[%emt 0:01:27]} 38. Qf3 {[%emt 0:02:46]} f5 {[%emt 0:00:59]} 39. Qe3 {[%emt 0:01:02]} Qd7 {[%emt 0:00:53]} 40. Qf3 {[%emt 0:03:54]} Qc7 {[%emt 0:00:24]} 41. Nc4 {[%emt 0:01:04]} Rd3 {[%emt 0:00:05]} 42. Ne3 {[%emt 0:00:06]} Rxb3 {[%emt 0:00:30]} 43. Kg1 {[%emt 0:00:08]} Qa5 {[%emt 0:00:35]} 44. Rd1 {[%emt 0:00:39]} c4 {[%emt 0:00:30]} 45. Qxf5 {[%emt 0:02:27]} Qxf5 {[%emt 0:00:11]} 46. Nxf5 {[%emt 0:00:06]} c3 {[%emt 0:00:10]} 47. Ne3 {[%emt 0:00:27]} Ra3 {[%emt 0:01:30]} 48. Rd4 {[%emt 0:02:01]} Ra1+ {[%emt 0:00:25]} 49. Kh2 {[%emt 0:00:16]} Nc5 {[%emt 0:00:28]} 50. a5 {[%emt 0:00:17]} Rxa5 {[%emt 0:00:07]} 51. Rc4 {[%emt 0:00:06]} Na4 {[%emt 0:00:06]} 52. Nd1 {[%emt 0:00:10]} Rc5 {[%emt 0:01:04]} 53. Rxc5 {[%emt 0:00:06]} Nxc5 {[%emt 0:00:04]} 54. Nxc3 {[%emt 0:00:06]} 1/2-1/2

[Event "1st Bangalore GM-Open-A 2024"]
[Site "Bangalore"]
[Date "2024.01.19"]
[Round "3.24"]
[White "Vijayakumar, Rishi"]
[Black "Vishnu Prasanna. V"]
[Result "1/2-1/2"]
[ECO "E16"]
[WhiteElo "2104"]
[BlackElo "2413"]
[Annotator "RC"]
[PlyCount "70"]
[EventDate "2024.01.20"]
[EventType "swiss"]
[EventCountry "IND"]
[SourceTitle "playchess.com"]
[Source "ChessBase"]
[SourceQuality "1"]
[TimeControl "5400+30"]

1. d4 {[%emt 0:00:10]} Nf6 {[%emt 0:00:09]} 2. c4 {[%emt 0:00:10]} e6 {[%emt 0:00:06]} 3. Nf3 {[%emt 0:00:05]} b6 {[%emt 0:00:04]} 4. g3 {[%emt 0:00:05]} Bb4+ {[%emt 0:00:05]} 5. Bd2 {[%emt 0:00:43]} Be7 {[%emt 0:00:06]} 6. Bg2 {[%emt 0:00:41]} Bb7 {[%emt 0:00:06]} 7. O-O {[%emt 0:00:27]} O-O {[%emt 0:00:06]} 8. Nc3 {[%emt 0:02:06]} Na6 {[%emt 0:00:19]} 9. Re1 {[%emt 0:14:06]} c5 {[%emt 0:07:16]} 10. e4 {[%emt 0:07:49]} cxd4 {[%emt 0:01:57]} 11. Nxd4 {[%emt 0:00:01]} Nc5 {[%emt 0:00:06]} 12. Qe2 {[%emt 0:13:38]} Qc8 {[%emt 0:10:08]} 13. b4 {[%emt 0:06:29]} Na6 {[%emt 0:00:07]} 14. a3 {[%emt 0:00:04]} Rd8 {[%emt 0:00:57]} 15. Rad1 {[%emt 0:07:42]} d6 {[%emt 0:05:39]} 16. Bh3 {[%emt 0:23:54]} Nc7 {[%emt 0:03:36]} 17. Nd5 {[%emt 0:01:05]} Re8 {[%emt 0:03:35]} 18. Nxe7+ {[%emt 0:00:48]} Rxe7 {[%emt 0:01:41]} 19. Bg5 {[%emt 0:01:37]} Nce8 {[%emt 0:01:34]} 20. Nb5 {[%emt 0:00:53]} Rd7 {[%emt 0:03:45]} 21. Bxf6 {[%emt 0:00:27]} gxf6 {[%emt 0:00:05]} 22. Rc1 {[%emt 0:09:10]} Qd8 {[%emt 0:00:47]} 23. Nd4 {[%emt 0:03:26]} Ng7 {[%emt 0:00:37]} 24. Red1 {[%emt 0:02:24]} Rc8 {[%emt 0:00:14]} 25. Rd2 {[%emt 0:00:15]} d5 {[%emt 0:07:34]} 26. exd5 {[%emt 0:02:18]} Bxd5 {[%emt 0:00:09]} 27. Nb3 {[%emt 0:00:29]} Bc6 {[%emt 0:03:37]} 28. Rcd1 {[%emt 0:00:36]} Rxd2 {[%emt 0:00:35]} 29. Rxd2 {[%emt 0:00:01]} Qc7 {[%emt 0:00:09]} 30. Nd4 {[%emt 0:01:06]} Ba4 {[%emt 0:01:44]} 31. Bf1 {[%emt 0:01:05]} Bd7 {[%emt 0:05:30]} 32. Nb5 {[%emt 0:00:13]} Bxb5 {[%emt 0:00:08]} 33. cxb5 {[%emt 0:00:00]} f5 {[%emt 0:00:53]} 34. Qd3 {[%emt 0:01:45]} Ne8 {[%emt 0:00:58]} 35. Qe3 {[%emt 0:00:37]} Ng7 {[%emt 0:03:08]} 1/2-1/2

[Event "1st Bangalore GM-Open-A 2024"]
[Site "Bangalore"]
[Date "2024.01.19"]
[Round "3.25"]
[White "Simhadri Sai Hrushikesh"]
[Black "Panda Sambit"]
[Result "1/2-1/2"]
[ECO "B12"]
[WhiteElo "2050"]
[BlackElo "2404"]
[Annotator "RC"]
[PlyCount "183"]
[EventDate "2024.01.20"]
[EventType "swiss"]
[EventCountry "IND"]
[SourceTitle "playchess.com"]
[Source "ChessBase"]
[SourceQuality "1"]
[TimeControl "5400+30"]

1. e4 {[%emt 0:05:12]} c6 {[%emt 0:05:23]} 2. d4 {[%emt 0:00:00]} d5 {[%emt 0:00:06]} 3. e5 {[%emt 0:00:00]} c5 {[%emt 0:01:26]} 4. dxc5 {[%emt 0:00:00]} e6 {[%emt 0:00:08]} 5. Be3 {[%emt 0:00:00]} Nd7 {[%emt 0:00:07]} 6. Bb5 {[%emt 0:01:43]} Ne7 {[%emt 0:00:42]} 7. c3 {[%emt 0:08:18]} a6 {[%emt 0:03:43]} 8. Ba4 {[%emt 0:03:33]} Nf5 {[%emt 0:01:32]} 9. Bd4 {[%emt 0:01:26]} Be7 {[%emt 0:00:11]} 10. Nf3 {[%emt 0:00:53]} O-O {[%emt 0:00:09]} 11. O-O {[%emt 0:00:47]} Nxc5 {[%emt 0:00:32]} 12. Bc2 {[%emt 0:00:24]} Nxd4 {[%emt 0:11:12]} 13. cxd4 {[%emt 0:01:00]} Nd7 {[%emt 0:03:58]} 14. a3 {[%emt 0:01:47]} Nb6 {[%emt 0:09:03]} 15. Bd3 {[%emt 0:08:57]} Bd7 {[%emt 0:02:03]} 16. Qe2 {[%emt 0:04:51]} Rc8 {[%emt 0:14:37]} 17. b3 {[%emt 0:13:25]} a5 {[%emt 0:02:51]} 18. Nbd2 {[%emt 0:12:47]} a4 {[%emt 0:02:25]} 19. b4 {[%emt 0:00:52]} Rc3 {[%emt 0:02:04]} 20. h3 {[%emt 0:20:50]} Nc8 {[%emt 0:12:31]} 21. Nb1 {[%emt 0:06:08]} Rc7 {[%emt 0:01:01]} 22. Ra2 {[%emt 0:00:20]} Na7 {[%emt 0:11:39]} 23. Rc2 {[%emt 0:00:30]} Rxc2 {[%emt 0:02:37]} 24. Qxc2 {[%emt 0:00:01]} h6 {[%emt 0:01:05]} 25. Rc1 {[%emt 0:00:17]} Bc6 {[%emt 0:00:59]} 26. Nc3 {[%emt 0:02:56]} Qd7 {[%emt 0:01:23]} 27. Qb2 {[%emt 0:00:37]} Rc8 {[%emt 0:03:23]} 28. Rc2 {[%emt 0:00:24]} b5 {[%emt 0:03:16]} 29. Qc1 {[%emt 0:00:40]} Qb7 {[%emt 0:00:39]} 30. Ne2 {[%emt 0:02:57]} Bd7 {[%emt 0:00:12]} 31. Rxc8+ {[%emt 0:01:30]} Nxc8 {[%emt 0:00:15]} 32. Nc3 {[%emt 0:00:10]} Qc7 {[%emt 0:04:01]} 33. Qd2 {[%emt 0:00:55]} Na7 {[%emt 0:00:15]} 34. Kf1 {[%emt 0:00:00]} Kf8 {[%emt 0:01:12]} 35. Na2 {[%emt 0:01:55]} Ke8 {[%emt 0:00:23]} 36. Ke1 {[%emt 0:00:18]} Kd8 {[%emt 0:00:27]} 37. Kd1 {[%emt 0:00:27]} Kc8 {[%emt 0:00:41]} 38. Qf4 {[%emt 0:00:37]} Be8 {[%emt 0:00:09]} 39. Qg4 {[%emt 0:00:51]} Bf8 {[%emt 0:00:19]} 40. Ne1 {[%emt 0:00:52]} Kb7 {[%emt 0:00:52]} 41. Qe2 {[%emt 0:00:22]} Kb6 {[%emt 0:00:28]} 42. Nc2 {[%emt 0:00:42]} Nc8 {[%emt 0:00:47]} 43. Kd2 {[%emt 0:01:01]} Na7 {[%emt 0:00:33]} 44. Kc1 {[%emt 0:00:13]} g5 {[%emt 0:00:35]} 45. Kb2 {[%emt 0:00:27]} Bg7 {[%emt 0:00:13]} 46. g3 {[%emt 0:00:20]} f6 {[%emt 0:00:47]} 47. exf6 {[%emt 0:00:16]} Bxf6 {[%emt 0:00:01]} 48. Qxe6+ {[%emt 0:00:19]} Qc6 {[%emt 0:00:01]} 49. Qe3 {[%emt 0:00:47]} Bd7 {[%emt 0:01:19]} 50. Nc3 {[%emt 0:00:23]} Qe6 {[%emt 0:00:32]} 51. Qf3 {[%emt 0:00:35]} Bc6 {[%emt 0:00:01]} 52. g4 {[%emt 0:00:25]} Qd6 {[%emt 0:00:28]} 53. Qf5 {[%emt 0:01:11]} Kb7 {[%emt 0:00:41]} 54. Qh7+ {[%emt 0:00:12]} Kb6 {[%emt 0:00:55]} 55. Qxh6 {[%emt 0:00:51]} Qf4 {[%emt 0:00:32]} 56. Bf5 {[%emt 0:00:43]} Bxd4 {[%emt 0:00:19]} 57. Nxd4 {[%emt 0:00:16]} Qxd4 {[%emt 0:00:06]} 58. Qxg5 {[%emt 0:00:29]} Qxf2+ {[%emt 0:00:03]} 59. Bc2 {[%emt 0:00:15]} Qd4 {[%emt 0:01:35]} 60. Qd8+ {[%emt 0:00:11]} Ka6 {[%emt 0:01:39]} 61. Qd6 {[%emt 0:01:14]} Qc4 {[%emt 0:00:00]} 62. Qc5 {[%emt 0:00:28]} d4 {[%emt 0:00:00]} 63. Nxa4 {[%emt 0:00:23]} Nc8 {[%emt 0:00:09]} 64. Qxc4 {[%emt 0:00:26]} bxc4 {[%emt 0:00:02]} 65. Nc5+ {[%emt 0:00:15]} Kb6 {[%emt 0:00:02]} 66. g5 {[%emt 0:00:21]} Ne7 {[%emt 0:00:40]} 67. h4 {[%emt 0:00:55]} Bf3 {[%emt 0:00:16]} 68. Nd7+ {[%emt 0:00:12]} Kc7 {[%emt 0:00:18]} 69. Ne5 {[%emt 0:00:16]} Be2 {[%emt 0:00:02]} 70. Kc1 {[%emt 0:00:36]} Kd6 {[%emt 0:00:44]} 71. Kd2 {[%emt 0:00:43]} Bf1 {[%emt 0:01:58]} 72. Nf3 {[%emt 0:00:25]} d3 {[%emt 0:00:34]} 73. Bb1 {[%emt 0:01:05]} Nd5 {[%emt 0:00:09]} 74. g6 {[%emt 0:00:25]} c3+ {[%emt 0:00:19]} 75. Kc1 {[%emt 0:00:25]} Be2 {[%emt 0:00:39]} 76. g7 {[%emt 0:00:38]} Nf6 {[%emt 0:00:15]} 77. Nd2 {[%emt 0:00:32]} Kd5 {[%emt 0:00:59]} 78. h5 {[%emt 0:00:30]} Kd4 {[%emt 0:00:45]} 79. Nb3+ {[%emt 0:00:27]} Kc4 {[%emt 0:00:30]} 80. Bxd3+ {[%emt 0:00:33]} Bxd3 {[%emt 0:00:11]} 81. Nc5 {[%emt 0:00:09]} Bh7 {[%emt 0:00:19]} 82. h6 {[%emt 0:00:25]} Ng4 {[%emt 0:00:49]} 83. Ne4 {[%emt 0:00:18]} Bg8 {[%emt 0:00:39]} 84. b5 {[%emt 0:00:33]} Kxb5 {[%emt 0:00:30]} 85. Nxc3+ {[%emt 0:00:05]} Kc4 {[%emt 0:00:28]} 86. Ne4 {[%emt 0:00:02]} Kb3 {[%emt 0:00:26]} 87. Kd2 {[%emt 0:00:38]} Kxa3 {[%emt 0:00:12]} 88. Ke2 {[%emt 0:00:05]} Nxh6 {[%emt 0:00:29]} 89. Nf6 {[%emt 0:00:05]} Bc4+ {[%emt 0:00:20]} 90. Kf3 {[%emt 0:00:09]} Nf5 {[%emt 0:00:05]} 91. g8=Q {[%emt 0:00:08]} Bxg8 {[%emt 0:00:02]} 92. Nxg8 {[%emt 0:00:01]} 1/2-1/2